bitfinex/quotes_BTCUSD_20250308
["timestamp","ask_amount","ask_price","bid_price","bid_amount"]
[1741460549095,0.011591,86271.0,86270.0,4.478e-05]
[1741460554999,0.011591,86271.0,86270.0,0.01821485]
[1741460555195,0.011591,86271.0,86270.0,4.478e-05]
[1741460555421,0.011591,86271.0,86270.0,0.01821485]
[1741460555586,0.011591,86271.0,86270.0,4.478e-05]
[1741460555779,0.011591,86271.0,86270.0,0.01821485]
[1741460556017,0.011591,86271.0,86270.0,4.478e-05]
[1741460556187,0.011591,86271.0,86270.0,0.01821485]
[1741460556383,0.011591,86271.0,86270.0,4.478e-05]
[1741460556621,0.011591,86271.0,86270.0,0.01821485]
[1741460556824,0.011591,86271.0,86270.0,4.478e-05]
[1741460557034,0.011591,86271.0,86270.0,0.01821485]
[1741460557203,0.011591,86271.0,86270.0,4.478e-05]
[1741460557406,0.011591,86271.0,86270.0,0.01821485]
[1741460557605,0.011591,86271.0,86270.0,0.00038438]
[1741460557804,0.011591,86271.0,86270.0,0.01855445]
[1741460558000,0.011591,86271.0,86270.0,0.00038438]
[1741460558208,0.0001698,86273.0,86270.0,0.01855445]
[1741460558441,0.0001698,86273.0,86270.0,0.00038438]
[1741460558645,0.0001698,86273.0,86271.0,0.09346708]
[1741460559838,0.0001698,86273.0,86271.0,0.01816708]
[1741460559839,0.49705,86272.0,86271.0,0.01816708]
[1741460560156,0.311591,86271.0,86270.0,0.00038438]
[1741460561273,0.02978096,86271.0,86270.0,0.00038438]
[1741460562092,0.185457,86273.0,86270.0,0.00038438]
[1741460562499,0.01818997,86271.0,86270.0,0.00038438]
[1741460562977,0.02978097,86271.0,86270.0,0.00038438]
[1741460566323,0.32978097,86271.0,86270.0,0.00038438]
[1741460567690,0.31887977,86271.0,86270.0,0.00038438]
[1741460574136,0.31340454,86270.0,86269.0,0.0003396]
[1741460574344,0.31340454,86270.0,86269.0,0.00045548]
[1741460575402,0.01340454,86270.0,86269.0,0.00045548]
[1741460576146,0.00181354,86270.0,86269.0,0.00045548]
[1741460576345,0.00181354,86270.0,86269.0,0.09965033]
[1741460576890,0.00228299,86274.0,86269.0,0.09965033]
[1741460577926,0.197055,86270.0,86269.0,0.09965033]
[1741460578867,0.197055,86270.0,86269.0,0.08075548]
[1741460580218,0.197055,86270.0,86269.0,0.00045548]
[1741460580550,0.197055,86270.0,86269.0,0.01932693]
[1741460581106,0.197055,86270.0,86269.0,0.00045548]
[1741460591891,0.02333618,86271.0,86270.0,0.0492]
[1741460592234,0.02333618,86271.0,86270.0,0.07969592]
[1741460592432,0.02333618,86271.0,86270.0,0.07749801]
[1741460592665,0.02333618,86271.0,86270.0,0.07741293]
[1741460593348,0.02333618,86271.0,86270.0,0.06582193]
[1741460593969,0.02333618,86271.0,86270.0,0.07741293]
[1741460595714,0.02333618,86271.0,86270.0,0.15981293]
[1741460596109,0.02333618,86271.0,86270.0,0.14822193]
[1741460596800,0.02333618,86271.0,86270.0,0.15981293]
[1741460597236,0.0001698,86271.0,86270.0,0.15981293]
[1741460600386,0.0001698,86271.0,86270.0,0.14822193]
[1741460600590,0.0001698,86271.0,86270.0,0.15981293]
[1741460603583,0.0001698,86271.0,86270.0,0.16097198]
[1741460603804,0.0001698,86271.0,86270.0,0.15981293]
[1741460604005,0.0001698,86271.0,86270.0,0.14822193]
[1741460604233,0.0001698,86271.0,86270.0,0.15981293]
[1741460604995,0.0001698,86271.0,86270.0,0.16015253]
[1741460606422,0.06458216,86290.0,86271.0,0.0771]
[1741460606599,0.011589,86287.0,86281.0,0.01159]
[1741460607022,0.011589,86287.0,86283.0,0.0771]
[1741460607505,0.02010131,86290.0,86285.0,0.011589]
[1741460607708,0.1490499,86311.0,86285.0,0.011589]
[1741460607709,0.00017,86293.0,86287.0,0.011589]
[1741460607844,0.02006081,86290.0,86287.0,0.011589]
[1741460608204,0.185585,86293.0,86288.0,0.01876993]
[1741460608566,0.011588,86292.0,86287.0,0.011589]
[1741460608808,0.011588,86292.0,86288.0,0.01876993]
[1741460609156,0.011588,86292.0,86287.0,0.011589]
[1741460609460,0.011588,86292.0,86288.0,0.01876993]
[1741460609814,0.011588,86292.0,86287.0,0.011589]
[1741460610121,0.011588,86292.0,86289.0,0.01876694]
[1741460610322,0.011588,86292.0,86288.0,0.01876993]
[1741460610527,0.02001222,86292.0,86290.0,0.01876395]
[1741460610696,0.00017,86293.0,86289.0,0.01876694]
[1741460610874,0.011758,86293.0,86291.0,0.01876096]
[1741460611059,0.197173,86293.0,86290.0,0.01876395]
[1741460611339,0.197173,86293.0,86292.0,0.01875797]
[1741460611536,0.197173,86293.0,86291.0,0.01876096]
[1741460611698,0.197173,86293.0,86292.0,0.01875797]
[1741460612096,0.011589,86287.0,86285.0,0.0462]
[1741460612597,0.011589,86287.0,86286.0,0.01877592]
[1741460613433,0.011589,86287.0,86269.0,0.00045548]
[1741460613434,0.41244,86287.0,86269.0,0.00045548]
[1741460613605,0.197053,86271.0,86269.0,0.00045548]
[1741460615693,0.01344931,86270.0,86269.0,0.00045548]
[1741460618727,0.00185831,86270.0,86269.0,0.00045548]
[1741460619163,0.01344931,86270.0,86269.0,0.01304428]
[1741460619356,0.01344931,86270.0,86269.0,0.00045548]
[1741460620611,0.011591,86272.0,86269.0,0.00045548]
[1741460621346,0.02048968,86272.0,86269.0,0.00045548]
[1741460621684,0.185462,86271.0,86269.0,0.00045548]
[1741460621884,0.011591,86270.0,86269.0,0.00045548]
[1741460625458,0.311591,86270.0,86269.0,0.00045548]
[1741460628863,0.197101,86250.0,86249.0,0.1241]
[1741460629073,0.197101,86250.0,86249.0,0.12448701]
[1741460629274,0.197101,86250.0,86249.0,0.13718614]
[1741460629648,0.197101,86250.0,86249.0,0.13752574]
[1741460629854,0.185504,86252.0,86249.0,0.13752574]
[1741460630054,0.011594,86251.0,86249.0,0.13752574]
[1741460630445,0.197101,86250.0,86249.0,0.13752574]
[1741460630873,0.185498,86254.0,86249.0,0.13752574]
[1741460630874,0.197089,86255.0,86249.0,0.13752574]
[1741460631201,0.197094,86253.0,86249.0,0.13752574]
[1741460631905,0.011594,86250.0,86249.0,0.13752574]
[1741460635848,0.03193552,86250.0,86249.0,0.13752574]
[1741460644253,0.02034152,86250.0,86249.0,0.01342574]
[1741460644459,0.011594,86250.0,86249.0,0.01342574]
[1741460644837,0.011594,86250.0,86249.0,0.00072661]
[1741460649509,0.02051994,86250.0,86249.0,0.00072661]
[1741460649906,0.00892594,86250.0,86249.0,0.0135618]
[1741460650080,0.02049773,86252.0,86250.0,0.1256]
[1741460650265,0.19709,86255.0,86250.0,0.1256]
[1741460650466,0.19709,86255.0,86251.0,0.0128292]
[1741460650929,0.011593,86254.0,86251.0,0.0128292]
[1741460651972,0.011593,86252.0,86251.0,0.0128292]
[1741460656182,0.011593,86252.0,86250.0,0.0483]
[1741460656336,0.197099,86251.0,86250.0,0.0483]
[1741460659443,0.011594,86250.0,86249.0,0.00072661]
[1741460659594,0.311594,86250.0,86249.0,0.00072661]
[1741460660581,0.32613485,86250.0,86249.0,0.00072661]
[1741460661422,0.34994794,86250.0,86249.0,0.00072661]
[1741460663830,0.3585307,86250.0,86249.0,0.00072661]
[1741460664643,0.197119,86242.0,86241.0,0.00034]
[1741460664844,0.197119,86242.0,86241.0,0.00039375]
[1741460679217,0.11957137,86244.0,86241.0,0.00039375]
[1741460679596,0.197119,86242.0,86241.0,0.00039375]
[1741460681092,0.05641601,86244.0,86241.0,0.00039375]
[1741460681358,0.011595,86242.0,86241.0,0.00039375]
[1741460681755,0.197119,86242.0,86241.0,0.00039375]
[1741460699814,0.51165985,86242.0,86241.0,0.00039375]
[1741460700050,0.51165985,86242.0,86225.0,0.0484]
[1741460700051,0.20921165,86226.0,86225.0,0.0484]
[1741460700396,0.20921165,86226.0,86225.0,0.06143424]
[1741460700593,0.20921165,86226.0,86225.0,0.04848948]
[1741460700828,0.20921165,86226.0,86225.0,0.06143424]
[1741460702210,0.20921165,86226.0,86225.0,0.01303424]
[1741460702413,0.20921165,86226.0,86225.0,0.01337384]
[1741460702588,0.20921165,86226.0,86225.0,0.00042908]
[1741460704774,0.31351484,86226.0,86225.0,0.00042908]
[1741460705320,0.32239119,86226.0,86225.0,0.00042908]
[1741460705915,0.31033454,86226.0,86225.0,0.00042908]
[1741460707200,0.61033454,86226.0,86225.0,0.00042908]
[1741460708373,0.50603135,86226.0,86225.0,0.00042908]
[1741460709053,0.52914137,86226.0,86225.0,0.00042908]
[1741460714430,0.32047335,86226.0,86225.0,0.07862908]
[1741460714705,0.32047335,86226.0,86225.0,0.12592908]
[1741460716334,0.32047335,86226.0,86225.0,0.12472342]
[1741460719799,0.32047335,86226.0,86225.0,0.0473]
[1741460725783,0.32047335,86226.0,86225.0,0.0003398]
[1741460726007,0.32064325,86226.0,86225.0,0.0003398]
[1741460726407,0.497164,86222.0,86221.0,0.00017635]
[1741460726571,0.497164,86222.0,86221.0,0.00029248]
[1741460728684,0.51170485,86222.0,86221.0,0.00029248]
[1741460728892,0.497188,86212.0,86211.0,0.0007396]
[1741460729099,1.718688,86212.0,86211.0,0.0007396]
[1741460729306,1.73322885,86212.0,86211.0,0.0007396]
[1741460729515,2.48369185,86212.0,86211.0,0.0007396]
[1741460729711,2.45326785,86212.0,86211.0,0.0007396]
[1741460730332,2.40880185,86212.0,86211.0,0.0007396]
[1741460730525,1.44870185,86212.0,86211.0,0.0007396]
[1741460732636,0.32613985,86211.0,86199.0,0.005]
[1741460732839,2.95316285,86211.0,86199.0,0.005]
[1741460733652,2.92579485,86211.0,86199.0,0.005]
[1741460734234,0.0116,86200.0,86199.0,0.005]
[1741460734567,0.497214,86200.0,86199.0,0.01403771]
[1741460734711,0.497214,86200.0,86199.0,0.005]
[1741460735324,0.51928111,86200.0,86199.0,0.005]
[1741460736239,0.51928111,86200.0,86199.0,0.00383627]
[1741460738290,0.54237998,86200.0,86199.0,0.00383627]
[1741460738514,0.54237998,86200.0,86199.0,0.00417607]
[1741460738717,0.55131716,86200.0,86199.0,0.00417607]
[1741460746434,0.55131716,86200.0,86199.0,0.00301236]
[1741460751857,0.56585801,86200.0,86199.0,0.00301236]
[1741460754201,0.55425801,86200.0,86190.0,0.07309228]
[1741460754448,0.011602,86191.0,86190.0,0.07309228]
[1741460756205,0.011602,86191.0,86189.0,0.047]
[1741460756408,0.197238,86190.0,86189.0,0.047]
[1741460756767,0.197252,86184.0,86181.0,0.0496]
[1741460758005,0.197252,86184.0,86183.0,0.00045603]
[1741460764860,0.011603,86182.0,86181.0,0.0496]
[1741460771763,0.0585667,86184.0,86181.0,0.0496]
[1741460771966,0.011603,86182.0,86181.0,0.0496]
[1741460775423,0.011603,86182.0,86181.0,0.0497699]
[1741460784333,1.94466085,86182.0,86181.0,9e-07]
[1741460784530,0.185675,86172.0,86171.0,0.0004]
[1741460784755,0.609719,86172.0,86171.0,0.0004]
[1741460787445,1.06404526,86172.0,86171.0,0.0004]
[1741460787654,1.07858611,86172.0,86171.0,0.0004]
[1741460788096,1.22762611,86172.0,86171.0,0.0004]
[1741460789274,1.23621897,86172.0,86171.0,0.0004]
[1741460789675,4.04381897,86172.0,86171.0,0.0004]
[1741460791085,0.51183585,86165.0,86162.0,0.0003398]
[1741460791290,1.64092885,86165.0,86162.0,0.0003398]
[1741460791525,1.71374385,86165.0,86162.0,0.0003398]
[1741460791728,1.66148485,86165.0,86162.0,0.0003398]
[1741460791975,0.011605,86163.0,86162.0,0.0003398]
[1741460792128,1.64342185,86163.0,86162.0,0.00072724]
[1741460792349,1.49142885,86163.0,86162.0,0.00072724]
[1741460793438,0.32614585,86163.0,86162.0,0.00072724]
[1741460794011,1.63038485,86163.0,86162.0,0.00072724]
[1741460794240,1.95738448,86163.0,86162.0,0.00072724]
[1741460794442,2.15738448,86163.0,86162.0,0.00072724]
[1741460795016,2.15738448,86163.0,86146.0,0.1251]
[1741460795017,0.011607,86152.0,86146.0,0.1251]
[1741460795360,3.249825,86152.0,86146.0,0.1251]
[1741460797035,3.27284209,86152.0,86146.0,0.1251]
[1741460799503,3.20934209,86152.0,86146.0,0.1251]
[1741460799680,0.52034209,86152.0,86146.0,0.1251]
[1741460800036,0.52034209,86152.0,86151.0,0.00057]
[1741460804531,1.74384209,86152.0,86151.0,0.00057]
[1741460804750,3.27284209,86152.0,86151.0,0.00057]
[1741460810526,1.74384209,86152.0,86151.0,0.00057]
[1741460815592,3.27284209,86152.0,86151.0,0.00057]
[1741460817223,3.76734209,86152.0,86151.0,0.00057]
[1741460818397,3.54901754,86152.0,86151.0,0.00057]
[1741460819000,3.56062454,86152.0,86151.0,0.00057]
[1741460819589,3.74634254,86152.0,86151.0,0.00057]
[1741460820282,2.52284254,86152.0,86151.0,0.00057]
[1741460821403,0.99384254,86152.0,86151.0,0.00057]
[1741460822143,3.74634254,86152.0,86151.0,0.00057]
[1741460822560,2.21734254,86152.0,86151.0,0.00057]
[1741460822916,2.21734254,86152.0,86151.0,0.07747]
[1741460825586,2.21768214,86152.0,86151.0,0.07747]
[1741460825787,1.93868169,86152.0,86151.0,0.07747]
[1741460827127,1.44418169,86152.0,86151.0,0.07747]
[1741460827886,1.74418169,86152.0,86151.0,0.07747]
[1741460828314,1.45241622,86152.0,86151.0,0.12447]
[1741460828711,1.63813422,86152.0,86151.0,0.12447]
[1741460828909,1.66139388,86152.0,86151.0,0.12447]
[1741460829310,0.02359926,86152.0,86151.0,0.12447]
[1741460829510,0.02359926,86152.0,86151.0,0.136077]
[1741460829929,0.02359926,86152.0,86151.0,0.13495295]
[1741460831263,0.0003396,86152.0,86151.0,0.13495295]
[1741460832757,0.0003396,86152.0,86151.0,0.14655995]
[1741460836511,0.0003396,86152.0,86151.0,0.14772055]
[1741460836974,0.0003396,86152.0,86151.0,0.26020055]
[1741460837160,0.0003396,86152.0,86151.0,0.25903995]
[1741460837749,0.00034,86162.0,86151.0,0.13554629]
[1741460837944,0.00034,86162.0,86161.0,0.324404]
[1741460838360,0.00034,86162.0,86161.0,0.33485922]
[1741460838967,0.00034,86162.0,86161.0,0.44733922]
[1741460839400,0.00034,86162.0,86161.0,0.25003522]
[1741460839854,0.00034,86162.0,86161.0,0.26164122]
[1741460841633,0.00034,86162.0,86161.0,0.25003522]
[1741460841949,0.00034,86162.0,86161.0,0.13755522]
[1741460842158,0.311946,86162.0,86161.0,0.05725522]
[1741460842380,0.311946,86162.0,86151.0,0.12607]
[1741460842554,0.197325,86152.0,86151.0,0.12607]
[1741460849467,0.1976646,86152.0,86151.0,0.12607]
[1741460850499,0.4976646,86152.0,86151.0,0.00057]
[1741460851800,0.6107046,86152.0,86151.0,0.00057]
[1741460852304,0.6107846,86152.0,86151.0,0.00057]
[1741460852828,0.87704145,86152.0,86151.0,0.00057]
[1741460853790,0.87704145,86152.0,86134.0,0.0003398]
[1741460853791,0.011609,86135.0,86134.0,0.0003398]
[1741460854001,0.197363,86135.0,86134.0,0.0003398]
[1741460854211,0.197363,86135.0,86134.0,0.01255568]
[1741460854710,0.21627881,86135.0,86134.0,0.01255568]
[1741460854959,0.21627881,86135.0,86134.0,0.01263189]
[1741460856157,0.21627881,86135.0,86134.0,0.00041601]
[1741460858855,0.21627881,86135.0,86134.0,0.01268475]
[1741460859050,0.21627881,86135.0,86134.0,0.00041601]
[1741460861105,0.51627881,86135.0,86134.0,0.00041601]
[1741460862351,0.88601481,86135.0,86134.0,0.00041601]
[1741460864221,0.90055566,86135.0,86134.0,0.00041601]
[1741460865008,2.42955566,86135.0,86134.0,0.00041601]
[1741460872275,2.53345301,86135.0,86134.0,0.00041601]
[1741460873086,1.00445301,86135.0,86134.0,0.00041601]
[1741460873752,2.42838501,86135.0,86134.0,0.00041601]
[1741460875494,0.497375,86130.0,86129.0,1e-06]
[1741460875695,0.497375,86130.0,86129.0,9.6e-07]
[1741460875696,0.59201585,86130.0,86129.0,9.6e-07]
[1741460876035,3.53977985,86130.0,86129.0,9.6e-07]
[1741460876329,0.61023834,86130.0,86129.0,9.6e-07]
[1741460877138,0.63307009,86130.0,86129.0,9.6e-07]
[1741460877717,0.311611,86119.0,86118.0,8.6e-07]
[1741460877921,2.53210085,86119.0,86118.0,9.3e-07]
[1741460878200,0.011612,86112.0,86111.0,9.3e-07]
[1741460878403,0.011612,86112.0,86095.0,0.0452]
[1741460878404,0.21198285,86101.0,86095.0,0.0452]
[1741460878612,2.49401395,86101.0,86091.0,0.0004]
[1741460878812,0.51199685,86095.0,86091.0,0.0004]
[1741460878974,0.497476,86086.0,86085.0,0.03587333]
[1741460879169,0.51201685,86086.0,86085.0,0.03598953]
[1741460879350,0.51201685,86086.0,86085.0,0.04837018]
[1741460879548,0.51201685,86086.0,86085.0,0.03598953]
[1741460879790,0.53024496,86086.0,86085.0,0.03598953]
[1741460880485,0.54937152,86086.0,86085.0,0.03598953]
[1741460880906,0.53483067,86086.0,86085.0,0.03598953]
[1741460881525,0.01822811,86086.0,86085.0,0.03598953]
[1741460881742,0.01822811,86086.0,86085.0,0.11778953]
[1741460882152,0.02984411,86086.0,86085.0,0.11778953]
[1741460882362,0.02984411,86086.0,86085.0,0.12844087]
[1741460882567,0.02984411,86086.0,86085.0,0.11778953]
[1741460882789,0.011616,86086.0,86085.0,0.12843699]
[1741460883036,0.01905188,86091.0,86087.0,0.185857]
[1741460883215,0.01905188,86091.0,86089.0,0.0465]
[1741460883442,0.197464,86092.0,86090.0,0.0818]
[1741460883879,0.197464,86092.0,86091.0,0.01063927]
[1741460884110,0.0187101,86092.0,86091.0,0.15055427]
[1741460884324,0.011614,86101.0,86095.0,0.0818]
[1741460884505,0.011614,86101.0,86097.0,0.0818]
[1741460885007,0.197442,86101.0,86097.0,0.0818]
[1741460885242,0.011614,86100.0,86097.0,0.0818]
[1741460885445,0.185821,86105.0,86098.0,0.0465]
[1741460885662,1.540614,86102.0,86099.0,0.0818]
[1741460885882,0.4945,86119.0,86114.0,0.325712]
[1741460886088,0.01857376,86118.0,86115.0,0.0818]
[1741460886297,0.011612,86116.0,86115.0,0.0818]
[1741460886680,0.011612,86116.0,86115.0,0.0923975]
[1741460888379,0.02983326,86118.0,86115.0,0.0923975]
[1741460888584,0.02983326,86118.0,86115.0,0.0818]
[1741460888786,0.01822226,86118.0,86115.0,0.0818]
[1741460888991,0.011612,86117.0,86115.0,0.0818]
[1741460889319,0.197407,86116.0,86115.0,0.0818]
[1741460893736,0.20401426,86118.0,86117.0,0.279205]
[1741460893737,0.01822226,86118.0,86117.0,0.279205]
[1741460893940,2.7415,86133.0,86128.0,0.1283]
[1741460894155,0.197377,86130.0,86129.0,0.0818]
[1741460896906,0.02982831,86130.0,86129.0,0.0818]
[1741460897106,0.01821831,86130.0,86129.0,0.09341]
[1741460897859,0.01821831,86130.0,86129.0,0.09234026]
[1741460898076,0.01821831,86130.0,86129.0,0.10395026]
[1741460898422,0.01855831,86130.0,86129.0,0.10395026]
[1741460903526,0.01855831,86130.0,86129.0,0.15161114]
[1741460903727,0.01855831,86130.0,86129.0,0.15045026]
[1741460903728,0.00034,86130.0,86129.0,0.15045026]
[1741460905660,0.00034,86130.0,86129.0,0.15161109]
[1741460906219,0.00034,86130.0,86129.0,0.15045026]
[1741460906422,0.00034,86130.0,86129.0,0.26437026]
[1741460906654,0.01855696,86130.0,86129.0,0.26437026]
[1741460913188,0.011607,86150.0,86144.0,0.197342]
[1741460913388,0.0003396,86151.0,86146.0,0.321039]
[1741460913834,0.0003396,86151.0,86147.0,0.0122271]
[1741460914792,0.197329,86150.0,86147.0,0.0122271]
[1741460915076,0.0003396,86151.0,86147.0,0.0122271]
[1741460915429,0.0003396,86151.0,86147.0,0.0238351]
[1741460916534,0.01855347,86151.0,86150.0,0.197329]
[1741460916739,0.01855347,86151.0,86150.0,0.278229]
[1741460916968,0.01855347,86151.0,86150.0,0.28870535]
[1741460917530,0.01855347,86151.0,86150.0,0.09137635]
[1741460921260,0.01855347,86151.0,86150.0,0.10298335]
[1741460922473,0.01855347,86151.0,86150.0,0.09137635]
[1741460922675,0.01855347,86151.0,86150.0,0.09555879]
[1741460923271,0.01855347,86151.0,86150.0,0.09137017]
[1741460924762,0.03016047,86151.0,86150.0,0.09137017]
[1741460925098,0.03016047,86151.0,86150.0,0.01047017]
[1741460925297,0.3119466,86151.0,86150.0,0.01047017]
[1741460925502,0.197359,86137.0,86136.0,0.0468]
[1741460925927,0.197359,86137.0,86136.0,0.06147964]
[1741460926831,0.197359,86137.0,86136.0,0.01467964]
[1741460927243,0.01161,86128.0,86127.0,0.0468]
[1741460927419,0.19738,86128.0,86127.0,0.0468]
[1741460928237,0.21559625,86128.0,86127.0,0.0468]
[1741460929939,0.197393,86122.0,86121.0,0.0765]
[1741460930139,0.18578,86124.0,86121.0,0.0765]
[1741460930254,0.197391,86124.0,86121.0,0.0765]
[1741460931076,0.011611,86123.0,86121.0,0.0765]
[1741460931968,0.011611,86123.0,86122.0,0.01470592]
[1741460933177,0.011611,86125.0,86122.0,0.01470592]
[1741460935241,0.197389,86124.0,86122.0,0.01470592]
[1741460935449,0.011611,86124.0,86122.0,0.01470592]
[1741460935835,0.197391,86123.0,86122.0,0.01470592]
[1741460937580,0.197391,86123.0,86121.0,0.0001698]
[1741460937788,0.011611,86122.0,86121.0,0.0001698]
[1741460938006,0.311611,86122.0,86121.0,0.0001698]
[1741460939198,0.002,86122.0,86121.0,0.0001698]
[1741460939407,0.03183061,86122.0,86121.0,0.0001698]
[1741460940562,0.03483061,86122.0,86121.0,0.0001698]
[1741460942092,0.03483061,86122.0,86121.0,0.0775698]
[1741460942297,0.016611,86122.0,86121.0,0.0775698]
[1741460943251,0.016611,86122.0,86121.0,0.09235247]
[1741460943495,0.016611,86122.0,86121.0,0.0775698]
[1741460943685,0.005,86122.0,86121.0,0.0775698]
[1741460943886,0.305,86122.0,86121.0,0.0775698]
[1741460944089,0.305,86122.0,86121.0,0.09235247]
[1741460944298,0.305,86122.0,86121.0,0.0775698]
[1741460944496,0.305,86122.0,86121.0,0.09235247]
[1741460944739,0.316611,86122.0,86121.0,0.0775698]
[1741460944939,0.316611,86122.0,86121.0,0.09235247]
[1741460945231,0.3169508,86122.0,86121.0,0.09235247]
[1741460945429,0.0053398,86122.0,86121.0,0.09235247]
[1741460945634,0.02355753,86122.0,86121.0,0.09235247]
[1741460947701,0.02355753,86122.0,86121.0,0.28974847]
[1741460947909,0.02355753,86122.0,86121.0,0.33844847]
[1741460948317,0.02055753,86122.0,86121.0,0.33844847]
[1741460948671,0.02355753,86122.0,86121.0,0.33844847]
[1741460948878,0.02155753,86122.0,86121.0,0.33844847]
[1741460949077,0.02155753,86122.0,86121.0,0.33944847]
[1741460949512,0.02155753,86122.0,86121.0,0.33844847]
[1741460949652,0.02155753,86122.0,86121.0,0.34044847]
[1741460950392,0.01855753,86122.0,86121.0,0.34044847]
[1741460950575,0.01855753,86122.0,86121.0,0.34244847]
[1741460950771,0.01855753,86122.0,86121.0,0.34285481]
[1741460951018,0.01855753,86122.0,86121.0,0.34085481]
[1741460951222,9.89e-05,86128.0,86127.0,0.197382]
[1741460951396,9.89e-05,86128.0,86127.0,0.43696266]
[1741460951591,9.89e-05,86128.0,86127.0,0.45051604]
[1741460951798,0.01831296,86128.0,86127.0,0.45051604]
[1741460952536,0.01931296,86128.0,86127.0,0.45551604]
[1741460953404,0.01931296,86128.0,86127.0,0.45451604]
[1741460954157,0.0010989,86128.0,86127.0,0.45451604]
[1741460954361,0.0020989,86128.0,86127.0,0.46051604]
[1741460954540,0.0020989,86128.0,86127.0,0.48551604]
[1741460954743,0.0010989,86128.0,86127.0,0.49009399]
[1741460954974,0.0010989,86128.0,86127.0,1.03249399]
[1741460955168,0.0020989,86128.0,86127.0,1.03949399]
[1741460955371,0.0010989,86128.0,86127.0,1.03349399]
[1741460955545,0.0020989,86128.0,86127.0,1.03949399]
[1741460956346,0.0010989,86128.0,86127.0,1.03349399]
[1741460957028,0.0020989,86128.0,86127.0,1.03949399]
[1741460957272,0.0003396,86151.0,86150.0,0.197329]
[1741460957375,0.0003396,86151.0,86150.0,0.44408938]
[1741460957605,0.0003396,86151.0,86150.0,0.46125036]
[1741460957831,0.01854939,86151.0,86150.0,0.46025036]
[1741460958602,0.01854939,86151.0,86150.0,0.47760889]
[1741460959013,0.01854939,86151.0,86150.0,0.48260889]
[1741460959223,0.01854939,86151.0,86150.0,0.46525036]
[1741460959421,0.01854939,86151.0,86150.0,0.46425036]
[1741460959601,0.01854939,86151.0,86150.0,0.46025036]
[1741460960100,0.01854939,86151.0,86150.0,0.46625036]
[1741460960298,0.01854939,86151.0,86150.0,0.46025036]
[1741460960863,0.01854939,86151.0,86150.0,1.00265036]
[1741460961209,0.01954939,86151.0,86150.0,1.00865036]
[1741460961824,0.01854939,86151.0,86150.0,1.00665036]
[1741460962148,0.01954939,86151.0,86150.0,1.00865036]
[1741460962460,0.01954939,86151.0,86150.0,1.01265036]
[1741460962661,0.01954939,86151.0,86150.0,1.00865036]
[1741460962790,0.01854939,86151.0,86150.0,1.00265036]
[1741460962989,0.01854939,86151.0,86150.0,1.01165036]
[1741460963192,0.01854939,86151.0,86150.0,1.00765036]
[1741460963396,0.01854939,86151.0,86150.0,1.01165036]
[1741460964603,0.01854939,86151.0,86150.0,1.00665036]
[1741460964926,0.01854939,86151.0,86150.0,1.00265036]
[1741460965201,0.01954939,86151.0,86150.0,1.01365036]
[1741460966198,0.01854939,86151.0,86150.0,1.00765036]
[1741460966971,0.01854939,86151.0,86150.0,0.46525036]
[1741460967702,0.01954939,86151.0,86150.0,0.47125036]
[1741460968330,0.01954939,86151.0,86150.0,0.49625036]
[1741460971170,0.01954939,86151.0,86150.0,0.47125036]
[1741460971381,0.01954939,86151.0,86150.0,0.49625036]
[1741460971870,0.01954939,86151.0,86150.0,0.47125036]
[1741460972872,0.01954939,86151.0,86150.0,1.01365036]
[1741460973643,0.18316202,86173.0,86164.0,0.011605]
[1741460973863,0.011604,86170.0,86165.0,0.11304]
[1741460974383,0.011604,86170.0,86166.0,0.01459547]
[1741460975067,0.011605,86167.0,86166.0,0.01459547]
[1741460975267,0.185681,86169.0,86166.0,0.01459547]
[1741460975506,0.197286,86169.0,86165.0,0.11304]
[1741460976025,0.013604,86170.0,86165.0,0.11304]
[1741460976426,0.001,86169.0,86166.0,0.01459547]
[1741460976631,0.011604,86170.0,86166.0,0.01459547]
[1741460977064,0.001,86169.0,86166.0,0.01459547]
[1741460977266,0.02981341,86170.0,86166.0,0.01459547]
[1741460977893,0.01820941,86170.0,86168.0,0.011605]
[1741460978224,0.01820941,86170.0,86169.0,0.02619485]
[1741460978378,0.01820941,86170.0,86169.0,0.02984231]
[1741460978925,0.01920941,86170.0,86169.0,0.02884231]
[1741460979464,0.01820941,86170.0,86169.0,0.02884231]
[1741460979991,0.01820941,86170.0,86169.0,0.03084231]
[1741460980189,0.01820941,86170.0,86169.0,0.02984231]
[1741460980434,0.01820941,86170.0,86169.0,0.02884231]
[1741460980583,0.01820941,86170.0,86169.0,0.03384231]
[1741460981828,0.01820941,86170.0,86169.0,0.03184231]
[1741460982227,0.01820941,86170.0,86169.0,0.03384231]
[1741460982457,0.01820941,86170.0,86169.0,0.03184231]
[1741460982659,0.01820941,86170.0,86169.0,0.02884231]
[1741460982818,0.01837921,86170.0,86169.0,0.03084231]
[1741460983668,0.01837921,86170.0,86169.0,0.02984231]
[1741460983868,0.01837921,86170.0,86169.0,0.03084231]
[1741460984485,0.01837921,86170.0,86169.0,0.02884231]
[1741460984825,0.01837921,86170.0,86169.0,0.03040899]
[1741460985071,0.01837921,86170.0,86169.0,0.10610899]
[1741460985274,0.01837921,86170.0,86169.0,0.10710899]
[1741460985471,0.0001698,86170.0,86169.0,0.10494865]
[1741460985676,0.0001698,86170.0,86169.0,0.10710885]
[1741460985876,0.0001698,86170.0,86169.0,0.12344897]
[1741460986075,0.0001698,86170.0,86169.0,0.16834885]
[1741460986451,0.0001698,86170.0,86169.0,0.17234885]
[1741460986657,0.0001698,86170.0,86169.0,0.17034885]
[1741460987239,0.0011698,86170.0,86169.0,0.18694286]
[1741460988489,0.01937484,86170.0,86169.0,0.18694286]
[1741460989054,0.01937484,86170.0,86169.0,0.18494286]
[1741460989282,0.01937484,86170.0,86169.0,0.18994286]
[1741460990678,0.01937484,86170.0,86169.0,0.73234286]
[1741460990833,0.01937484,86170.0,86169.0,0.18878278]
[1741460991056,0.01937484,86170.0,86169.0,0.18994298]
[1741460992417,0.01937484,86170.0,86169.0,0.18878278]
[1741460992825,0.01937484,86170.0,86169.0,0.18837644]
[1741460993033,0.01937484,86170.0,86169.0,0.17203632]
[1741460993238,0.01937484,86170.0,86169.0,0.28515632]
[1741460993526,0.0011698,86170.0,86169.0,0.28515632]
[1741460994288,0.0011698,86170.0,86169.0,0.28549592]
[1741460995469,0.0011698,86170.0,86169.0,0.27590191]
[1741460996299,0.01937543,86170.0,86169.0,0.27590191]
[1741461000342,0.01937543,86170.0,86169.0,0.27620879]
[1741461000544,0.01937543,86170.0,86169.0,0.30120879]
[1741461002763,8.7e-07,86191.0,86190.0,0.061602]
[1741461002960,9e-08,86191.0,86190.0,0.80163885]
[1741461003160,9e-08,86191.0,86190.0,0.81979033]